lending/lending_fUSD_20260110
["ID","MTS","AMOUNT","RATE_DAILY","PERIOD"]
[401183685,1768026653381,-194.08427451,0.00018,2]
[401183686,1768026653391,-231.22039699,0.00018,2]
[401183687,1768026653401,-157.59943202,0.00018,2]
[401183688,1768026653410,-518207.36346359,0.00018,2]
[401183689,1768026653422,-151.0614,0.00018,2]
[401183690,1768026653432,-402.95546988,0.00018,2]
[401183691,1768026653442,-500.0,0.00018,2]
[401183692,1768026653454,-500.0,0.00018,2]
[401183693,1768026653464,-500.0,0.00018,2]
[401183694,1768026653475,-500.0,0.00018,2]
[401183695,1768026653484,-500.0,0.00018,2]
[401183696,1768026653495,-500.0,0.00018,2]
[401183697,1768026653505,-500.0,0.00018,2]
[401183698,1768026653515,-500.0,0.00018,2]
[401183699,1768026653525,-500.0,0.00018,2]
[401183700,1768026653536,-162.9,0.00018,2]
[401183701,1768026653546,-1397354.54822849,0.00018,2]
[401183702,1768026654511,-8242.04724838,0.00018,2]
[401183703,1768026654668,-607.965687,0.00017999,2]
[401183704,1768026654677,-700.54689346,0.00018,2]
[401183705,1768026654841,-2500.0,0.00015594,2]
[401183706,1768026654851,-1113.0383036,0.00016926,2]
[401183707,1768026654867,-1490.65808469,0.00016926,2]
[401183708,1768026654876,-369.2498532,0.00018,2]
[401183709,1768026711641,293.31571719,0.000202,30]
[401183710,1768026711905,235.8708266,0.000202,30]
[401183711,1768026741364,500.0,0.00018,30]
[401183724,1768027763364,1008.49178409,0.00010475,2]
[401183725,1768027831514,-166.66,0.00013948,2]
[401183726,1768027831523,-166.66,0.00014242,2]
[401183727,1768027831533,-166.66,0.00014535,2]
[401183728,1768027831542,-166.66,0.00014829,2]
[401183729,1768027831552,-1200.0,0.00014883,2]
[401183730,1768027831561,-150.0,0.00014884,2]
[401183731,1768027831570,-500.0,0.00014884,2]
[401183732,1768027831579,-150.0,0.00014884,2]
[401183733,1768027831588,-500.0,0.00014884,2]
[401183734,1768027831597,-150.0,0.00014884,2]
[401183735,1768027831607,-150.0,0.00014884,2]
[401183736,1768027831616,-300.0,0.00014891,2]
[401183737,1768027831625,-150.0,0.00014939,2]
[401183738,1768027831635,-500.0,0.00014939,2]
[401183739,1768027831644,-150.0,0.00014939,2]
[401183740,1768027831653,-500.0,0.00014939,2]
[401183741,1768027831662,-155.6903429,0.00014939,2]
[401183742,1768027831671,-150.0,0.00014939,2]
[401183743,1768027831681,-150.0,0.00014994,2]
[401183744,1768027831690,-500.0,0.00014994,2]
[401183745,1768027831699,-242.66022183,0.00014994,2]
[401183747,1768027831709,-500.0,0.00014994,2]
[401183748,1768027831719,-150.0,0.00014994,2]
[401183749,1768027831728,-150.0,0.00015048,2]
[401183750,1768027831737,-500.0,0.00015048,2]
[401183751,1768027831746,-500.0,0.00015048,2]
[401183752,1768027831755,-150.0,0.00015048,2]
[401183753,1768027831764,-224430.66465829,0.00015058,2]
[401183754,1768027831776,-906.51316563,0.00015058,2]
[401183755,1768027831787,-8212.78146481,0.00015058,2]
[401183756,1768027831798,-35156.38872058,0.00015058,2]
[401183792,1768027838172,-1875.93,0.00015058,2]
[401183794,1768027838183,-431.13158246,0.00015058,2]
[401183897,1768027839563,-345.37327671,0.00015057,2]
[401183899,1768027839573,-210.6933356,0.00015057,2]
[401183901,1768027839583,-1356.12090769,0.00015058,2]
[401183903,1768027839595,-727630.46950054,0.00015058,2]
[401183905,1768027839604,-7267.0358,0.00015067,2]
[401183907,1768027839614,-3802.581,0.00015067,2]
[401183909,1768027839623,-7666.918,0.00015067,2]
[401183911,1768027839633,-2500.0,0.00015067,2]
[401183913,1768027839642,-3805.2217052,0.00015073,2]
[401183915,1768027839652,-2343.32674948,0.00015073,2]
[401183917,1768027839661,-152.39732617,0.00015103,2]
[401183919,1768027839671,-500.0,0.00015103,2]
[401183921,1768027839680,-500.0,0.00015103,2]
[401183923,1768027839690,-150.0,0.00015103,2]
[401183925,1768027839699,-166.66,0.00015123,2]
[401183927,1768027839709,-505.33267795,0.00015157,2]
[401183929,1768027839718,-103.94078909,0.00015157,2]
[401183941,1768027839835,-98.27802935,0.00015157,2]
[401183943,1768027839845,-500.0,0.00015157,2]
[401183945,1768027839854,-500.0,0.00015157,2]
[401183947,1768027839864,-500.0,0.00015157,2]
[401183949,1768027839874,-500.0,0.00015157,2]
[401183951,1768027839884,-500.0,0.00015157,2]
[401183953,1768027839893,-500.0,0.00015157,2]
[401183955,1768027839903,-500.0,0.00015157,2]
[401183957,1768027839912,-500.0,0.00015157,2]
[401183959,1768027839922,-205.67940434,0.00015157,2]
[401183961,1768027839932,-500.0,0.00015157,2]
[401183963,1768027839941,-500.0,0.00015157,2]
[401183965,1768027839950,-500.0,0.00015157,2]
[401183967,1768027839960,-500.0,0.00015157,2]
[401183969,1768027839969,-500.0,0.00015157,2]
[401183971,1768027839979,-500.0,0.00015157,2]
[401183972,1768027839992,-500.0,0.00015157,2]
[401183974,1768027840002,-500.0,0.00015157,2]
[401183976,1768027840011,-500.0,0.00015157,2]
[401183978,1768027840021,-500.0,0.00015157,2]
[401183980,1768027840031,-500.0,0.00015157,2]
[401183982,1768027840040,-500.0,0.00015157,2]
[401183984,1768027840050,-500.0,0.00015157,2]
[401183986,1768027840060,-500.0,0.00015157,2]
[401183988,1768027840069,-527.34228679,0.00015157,2]
[401183990,1768027840079,-203.86411687,0.00015157,2]
[401183992,1768027840088,-151.0,0.00015157,2]
[401183994,1768027840098,-151.0,0.00015157,2]
[401183996,1768027840107,-151.0,0.00015157,2]
[401183998,1768027840116,-500.0,0.00015158,2]
[401184000,1768027840126,-242.38852672,0.00015158,2]
[401184002,1768027840136,-250.0,0.00015158,2]
[401184004,1768027840145,-500.0,0.00015163,2]
[401184006,1768027840155,-500.0,0.00015163,2]
[401184008,1768027840164,-500.0,0.00015163,2]
[401184010,1768027840174,-500.0,0.00015163,2]
[401184012,1768027840183,-500.0,0.00015163,2]
[401184014,1768027840192,-500.0,0.00015163,2]
[401184016,1768027840201,-500.0,0.00015163,2]
[401184018,1768027840210,-500.0,0.00015163,2]
[401184020,1768027840219,-500.0,0.00015163,2]
[401184022,1768027840229,-500.0,0.00015163,2]
[401184024,1768027840238,-500.0,0.00015163,2]
[401184026,1768027840247,-500.0,0.00015163,2]
[401184028,1768027840256,-500.0,0.00015163,2]
[401184029,1768027840265,-500.0,0.00015163,2]
[401184031,1768027840275,-500.0,0.00015163,2]
[401184033,1768027840284,-500.0,0.00015163,2]
[401184035,1768027840293,-500.0,0.00015163,2]
[401184037,1768027840302,-500.0,0.00015163,2]
[401184039,1768027840311,-500.0,0.00015163,2]
[401184041,1768027840321,-500.0,0.00015163,2]
[401184043,1768027840330,-500.0,0.00015163,2]
[401184045,1768027840339,-500.0,0.00015163,2]
[401184047,1768027840349,-500.0,0.00015163,2]
[401184049,1768027840358,-500.0,0.00015163,2]
[401184051,1768027840367,-500.0,0.00015163,2]
[401184053,1768027840376,-500.0,0.00015163,2]
[401184055,1768027840385,-500.0,0.00015163,2]
[401184057,1768027840398,-500.0,0.00015163,2]
[401184059,1768027840411,-500.0,0.00015163,2]
[401184061,1768027840420,-155.0991156,0.00015163,2]
[401184063,1768027840430,-500.0,0.00015163,2]
[401184065,1768027840439,-500.0,0.00015163,2]
[401184067,1768027840448,-500.0,0.00015163,2]
[401184069,1768027840457,-500.0,0.00015163,2]
[401184071,1768027840467,-500.0,0.00015163,2]
[401184073,1768027840477,-500.0,0.00015163,2]
[401184075,1768027840487,-500.0,0.00015163,2]
[401184077,1768027840496,-500.0,0.00015163,2]
[401184079,1768027840506,-500.0,0.00015163,2]
[401184081,1768027840514,-500.0,0.00015163,2]
[401184083,1768027840523,-500.0,0.00015163,2]
[401184084,1768027840532,-500.0,0.00015163,2]
[401184086,1768027840542,-500.0,0.00015163,2]
[401184088,1768027840551,-500.0,0.00015163,2]
[401184090,1768027840560,-500.0,0.00015163,2]
[401184092,1768027840570,-500.0,0.00015163,2]
[401184094,1768027840579,-500.0,0.00015163,2]
[401184096,1768027840588,-500.0,0.00015163,2]
[401184098,1768027840598,-500.0,0.00015163,2]
[401184100,1768027840607,-500.0,0.00015163,2]
[401184102,1768027840616,-500.0,0.00015163,2]
[401184104,1768027840625,-500.0,0.00015163,2]
[401184106,1768027840634,-500.0,0.00015163,2]
[401184108,1768027840643,-500.0,0.00015163,2]
[401184110,1768027840653,-500.0,0.00015163,2]
[401184112,1768027840662,-500.0,0.00015163,2]
[401184114,1768027840671,-500.0,0.00015163,2]
[401184116,1768027840680,-500.0,0.00015163,2]
[401184118,1768027840689,-550.0,0.00015163,2]
[401184120,1768027840700,-500.0,0.00015163,2]
[401184122,1768027840710,-500.0,0.00015163,2]
[401184124,1768027840719,-500.0,0.00015163,2]
[401184126,1768027840729,-500.0,0.00015163,2]
[401184128,1768027840738,-500.0,0.00015163,2]
[401184130,1768027840748,-250.0,0.00015163,2]
[401184132,1768027840757,-743.345,0.00015166,2]
[401184134,1768027840767,-542.89957297,0.00015166,2]
[401184136,1768027840776,-500.0,0.00015173,2]
[401184138,1768027840787,-500.0,0.00015213,2]
[401184140,1768027840796,-500.0,0.00015233,2]
[401184142,1768027840806,-500.0,0.00015268,2]
[401184144,1768027840815,-500.0,0.00015322,2]
[401184146,1768027840825,-500.0,0.00015377,2]
[401184148,1768027840835,-3805.2217052,0.00015387,2]
[401184150,1768027840844,-2343.32674946,0.00015387,2]
[401184152,1768027840854,-166.66,0.00015416,2]
[401184154,1768027840862,-500.0,0.00015432,2]
[401184156,1768027840872,-500.0,0.00015452,2]
[401184158,1768027840881,-500.0,0.00015487,2]
[401184160,1768027840890,-151.0,0.00015531,2]
[401184162,1768027840899,-151.0,0.00015531,2]
[401184164,1768027840909,-151.0,0.00015531,2]
[401184166,1768027840919,-151.0,0.00015531,2]
[401184168,1768027840929,-500.0,0.00015542,2]
[401184170,1768027840938,-1000.0,0.00015594,2]
[401184172,1768027840948,-500.0,0.00015596,2]
[401184174,1768027840957,-500.0,0.00015651,2]
[401184176,1768027840966,-3805.2217052,0.00015701,2]
[401184178,1768027840977,-2343.32674946,0.00015701,2]
[401184180,1768027840986,-175.0,0.00015706,2]
[401184182,1768027840995,-1000.0,0.00015721,2]
[401184184,1768027841005,-3805.2217052,0.00016015,2]
[401184186,1768027841014,-2343.32674946,0.00016015,2]
[401184188,1768027841024,-200.0,0.00016184,2]
[401184190,1768027841033,-150.0,0.000162,2]
[401184192,1768027841042,-263.75602621,0.000162,2]
[401184194,1768027841052,-255.68743637,0.000162,2]
[401184196,1768027841061,-189.54348929,0.000162,2]
[401184198,1768027841070,-150.0,0.000162,2]
[401184200,1768027841079,-150.0,0.000162,2]
[401184202,1768027841088,-229.31905987,0.000162,2]
[401184203,1768027841097,-216.87423394,0.000162,2]
[401184205,1768027841108,-150.0,0.000162,2]
[401184207,1768027841117,-150.0,0.000162,2]
[401184209,1768027841126,-150.0,0.000162,2]
[401184211,1768027841135,-150.0,0.000162,2]
[401184213,1768027841144,-178.71892515,0.000162,2]
[401184215,1768027841153,-150.0,0.000162,2]
[401184217,1768027841167,-150.0,0.000162,2]
[401184219,1768027841176,-150.0,0.000162,2]
[401184221,1768027841185,-150.0,0.000162,2]
[401184223,1768027841195,-263.75602621,0.00016218,2]
[401184225,1768027841204,-255.68743637,0.00016218,2]
[401184227,1768027841214,-189.54348929,0.00016218,2]
[401184229,1768027841223,-229.31905987,0.00016218,2]
[401184231,1768027841232,-216.87423394,0.00016218,2]
[401184233,1768027841242,-178.71892515,0.00016218,2]
[401184235,1768027841251,-150.0,0.0001623,2]
[401184237,1768027841260,-150.0,0.00016235,2]
[401184239,1768027841269,-263.75602621,0.00016236,2]
[401184241,1768027841278,-255.68743637,0.00016236,2]
[401184243,1768027841288,-189.54348929,0.00016236,2]
[401184245,1768027841297,-229.31905987,0.00016236,2]
[401184247,1768027841307,-216.87423394,0.00016236,2]
[401184249,1768027841316,-178.71892515,0.00016236,2]
[401184251,1768027841325,-150.0,0.00016241,2]
[401184253,1768027841334,-263.75602621,0.00016255,2]
[401184255,1768027841344,-255.68743637,0.00016255,2]
[401184257,1768027841353,-189.54348929,0.00016255,2]
[401184259,1768027841362,-229.31905987,0.00016255,2]
[401184261,1768027841372,-216.87423394,0.00016255,2]
[401184263,1768027841380,-178.71892515,0.00016255,2]
[401184265,1768027841390,-150.0,0.00016259,2]
[401184267,1768027841402,-150.0,0.00016267,2]
[401184269,1768027841417,-1196.96188571,0.00016268,2]
[401184271,1768027841426,-150.0,0.00016269,2]
[401184273,1768027841435,-263.75602621,0.00016273,2]
[401184275,1768027841444,-255.68743637,0.00016273,2]
[401184277,1768027841455,-189.54348929,0.00016273,2]
[401184279,1768027841464,-229.31905987,0.00016273,2]
[401184280,1768027841473,-216.87423394,0.00016273,2]
[401184282,1768027841483,-178.71892515,0.00016273,2]
[401184284,1768027841492,-150.0,0.00016282,2]
[401184286,1768027841501,-150.0,0.00016289,2]
[401184288,1768027841511,-263.75602621,0.00016291,2]
[401184290,1768027841520,-255.68743637,0.00016291,2]
[401184292,1768027841529,-189.54348929,0.00016291,2]
[401184294,1768027841539,-229.31905987,0.00016291,2]
[401184296,1768027841548,-216.87423394,0.00016291,2]
[401184298,1768027841557,-178.71892515,0.00016291,2]
[401184300,1768027841567,-150.0,0.00016304,2]
[401184302,1768027841576,-263.75602621,0.00016309,2]
[401184304,1768027841586,-255.68743637,0.00016309,2]
[401184306,1768027841595,-189.54348929,0.00016309,2]
[401184308,1768027841604,-229.31905987,0.00016309,2]
[401184310,1768027841613,-216.87423394,0.00016309,2]
[401184312,1768027841623,-178.71892515,0.00016309,2]
[401184314,1768027841632,-150.0,0.00016312,2]
[401184316,1768027841642,-150.0,0.00016318,2]
[401184318,1768027841651,-150.0,0.00016323,2]
[401184320,1768027841661,-170.64,0.00016324,2]
[401184322,1768027841671,-263.75602621,0.00016327,2]
[401184324,1768027841680,-255.68743637,0.00016327,2]
[401184326,1768027841689,-189.54348929,0.00016327,2]
[401184328,1768027841698,-229.31905987,0.00016327,2]
[401184330,1768027841708,-216.87423394,0.00016327,2]
[401184332,1768027841718,-178.71892515,0.00016327,2]
[401184363,1768027842013,-3805.2217052,0.00016329,2]
[401184366,1768027842028,-2343.32674946,0.00016329,2]
[401184368,1768027842038,-150.0,0.00016333,2]
[401184370,1768027842048,-150.0,0.00016338,2]
[401184372,1768027842058,-263.75602621,0.00016345,2]
[401184374,1768027842069,-255.68743637,0.00016345,2]
[401184376,1768027842079,-189.54348929,0.00016345,2]
[401184378,1768027842088,-229.31905987,0.00016345,2]
[401184380,1768027842097,-216.87423394,0.00016345,2]
[401184382,1768027842107,-178.71892515,0.00016345,2]
[401184384,1768027842116,-150.0,0.00016348,2]
[401184386,1768027842126,-263.75602621,0.00016364,2]
[401184388,1768027842135,-255.68743637,0.00016364,2]
[401184390,1768027842145,-189.54348929,0.00016364,2]
[401184392,1768027842155,-150.0,0.00016364,2]
[401184394,1768027842164,-229.31905987,0.00016364,2]
[401184396,1768027842174,-216.87423394,0.00016364,2]
[401184398,1768027842183,-178.71892515,0.00016364,2]
[401184400,1768027842193,-1680.0,0.00016371,2]
[401184402,1768027842202,-150.0,0.00016373,2]
[401184404,1768027842211,-150.0,0.00016377,2]
[401184406,1768027842222,-263.75602621,0.00016382,2]
[401184408,1768027842232,-255.68743637,0.00016382,2]
[401184410,1768027842241,-189.54348929,0.00016382,2]
[401184412,1768027842251,-229.31905987,0.00016382,2]
[401184414,1768027842260,-216.87423394,0.00016382,2]
[401184416,1768027842270,-178.71892515,0.00016382,2]
[401184418,1768027842279,-263.75602621,0.000164,2]
[401184421,1768027842290,-255.68743637,0.000164,2]
[401184424,1768027842299,-189.54348929,0.000164,2]
[401184426,1768027842308,-229.31905987,0.000164,2]
[401184429,1768027842318,-216.87423394,0.000164,2]
[401184432,1768027842328,-150.0,0.000164,2]
[401184434,1768027842338,-150.0,0.000164,2]
[401184436,1768027842348,-150.0,0.000164,2]
[401184438,1768027842357,-178.71892515,0.000164,2]
[401184440,1768027842367,-150.0,0.00016405,2]
[401184443,1768027842377,-150.0,0.00016407,2]
[401184445,1768027842388,-150.0,0.00016408,2]
[401184447,1768027842397,-263.75602621,0.00016418,2]
[401184449,1768027842409,-255.68743637,0.00016418,2]
[401184451,1768027842421,-189.54348929,0.00016418,2]
[401184452,1768027842430,-229.31905987,0.00016418,2]
[401184453,1768027842440,-216.87423394,0.00016418,2]
[401184454,1768027842449,-178.71892515,0.00016418,2]
[401184455,1768027842459,-150.0,0.00016425,2]
[401184456,1768027842469,-150.0,0.00016436,2]
[401184457,1768027842478,-263.75602621,0.00016436,2]
[401184458,1768027842488,-255.68743637,0.00016436,2]
[401184459,1768027842499,-189.54348929,0.00016436,2]
[401184460,1768027842509,-229.31905987,0.00016436,2]
[401184461,1768027842519,-216.87423394,0.00016436,2]
[401184462,1768027842528,-178.71892515,0.00016436,2]
[401184464,1768027842538,-500.0,0.00016438,2]
[401184466,1768027842547,-500.0,0.00016438,2]
[401184468,1768027842556,-500.0,0.00016438,2]
[401184470,1768027842566,-500.0,0.00016438,2]
[401184471,1768027842575,-500.0,0.00016438,2]
[401184473,1768027842585,-500.0,0.00016438,2]
[401184475,1768027842594,-500.0,0.00016438,2]
[401184477,1768027842604,-500.0,0.00016438,2]
[401184479,1768027842613,-155.90809256,0.00016438,2]
[401184481,1768027842623,-500.0,0.00016438,2]
[401184483,1768027842633,-500.0,0.00016438,2]
[401184485,1768027842642,-500.0,0.00016438,2]
[401184487,1768027842652,-500.0,0.00016438,2]
[401184489,1768027842661,-500.0,0.00016438,2]
[401184491,1768027842671,-500.0,0.00016438,2]
[401184493,1768027842680,-500.0,0.00016438,2]
[401184495,1768027842690,-500.0,0.00016438,2]
[401184497,1768027842700,-500.0,0.00016438,2]
[401184499,1768027842709,-500.0,0.00016438,2]
[401184501,1768027842718,-500.0,0.00016438,2]
[401184503,1768027842728,-500.0,0.00016438,2]
[401184505,1768027842737,-500.0,0.00016438,2]
[401184507,1768027842746,-600.0,0.00016438,2]
[401184509,1768027842756,-567.0,0.00016438,2]
[401184511,1768027842765,-150.0,0.00016442,2]
[401184513,1768027842774,-150.0,0.00016445,2]
[401184515,1768027842784,-263.75602621,0.00016455,2]
[401184517,1768027842794,-255.68743637,0.00016455,2]
[401184519,1768027842803,-189.54348929,0.00016455,2]
[401184521,1768027842813,-229.31905987,0.00016455,2]
[401184523,1768027842823,-216.87423394,0.00016455,2]
[401184525,1768027842833,-178.71892515,0.00016455,2]
[401184527,1768027842843,-150.0,0.00016466,2]
[401184529,1768027842852,-150.0,0.00016467,2]
[401184531,1768027842861,-263.75602621,0.00016473,2]
[401184533,1768027842870,-255.68743637,0.00016473,2]
[401184535,1768027842880,-189.54348929,0.00016473,2]
[401184537,1768027842890,-229.31905987,0.00016473,2]
[401184539,1768027842899,-216.87423394,0.00016473,2]
[401184541,1768027842909,-178.71892515,0.00016473,2]
[401184543,1768027842918,-150.0,0.00016477,2]
[401184545,1768027842928,-150.0,0.00016486,2]
[401184547,1768027842938,-263.75602621,0.00016491,2]
[401184549,1768027842947,-255.68743637,0.00016491,2]
[401184551,1768027842957,-189.54348929,0.00016491,2]
[401184553,1768027842966,-229.31905987,0.00016491,2]
[401184555,1768027842976,-216.87423394,0.00016491,2]
[401184557,1768027842987,-178.71892515,0.00016491,2]
[401184559,1768027842997,-150.0,0.00016495,2]
[401184561,1768027843007,-150.0,0.000165,2]
[401184563,1768027843016,-263.75602621,0.00016509,2]
[401184565,1768027843026,-255.68743637,0.00016509,2]
[401184567,1768027843035,-189.54348929,0.00016509,2]
[401184569,1768027843044,-229.31905987,0.00016509,2]
[401184571,1768027843054,-216.87423394,0.00016509,2]
[401184573,1768027843064,-178.71892515,0.00016509,2]
[401184575,1768027843073,-150.0,0.00016512,2]
[401184577,1768027843083,-150.0,0.00016525,2]
[401184579,1768027843093,-263.75602621,0.00016527,2]
[401184581,1768027843102,-255.68743637,0.00016527,2]
[401184583,1768027843111,-189.54348929,0.00016527,2]
[401184585,1768027843121,-150.0,0.00016527,2]
[401184587,1768027843131,-229.31905987,0.00016527,2]
[401184589,1768027843140,-216.87423394,0.00016527,2]
[401184591,1768027843150,-178.71892515,0.00016527,2]
[401184593,1768027843159,-150.0,0.00016533,2]
[401184595,1768027843168,-150.0,0.00016537,2]
[401184597,1768027843178,-263.75602621,0.00016545,2]
[401184599,1768027843187,-255.68743637,0.00016545,2]
[401184601,1768027843197,-189.54348929,0.00016545,2]
[401184603,1768027843207,-229.31905987,0.00016545,2]
[401184605,1768027843216,-216.87423394,0.00016545,2]
[401184607,1768027843226,-178.71892515,0.00016545,2]
[401184609,1768027843238,-150.0,0.00016546,2]
[401184611,1768027843247,-150.0,0.00016554,2]
[401184613,1768027843258,-150.0,0.0001656,2]
[401184615,1768027843268,-263.75602621,0.00016564,2]
[401184617,1768027843277,-255.68743637,0.00016564,2]
[401184619,1768027843286,-189.54348929,0.00016564,2]
[401184621,1768027843295,-229.31905987,0.00016564,2]
[401184623,1768027843304,-216.87423394,0.00016564,2]
[401184625,1768027843314,-178.71892515,0.00016564,2]
[401184627,1768027843323,-150.0,0.00016568,2]
[401184629,1768027843332,-150.0,0.00016581,2]
[401184631,1768027843342,-263.75602621,0.00016582,2]
[401184633,1768027843351,-255.68743637,0.00016582,2]
[401184635,1768027843360,-189.54348929,0.00016582,2]
[401184637,1768027843370,-229.31905987,0.00016582,2]
[401184639,1768027843380,-216.87423394,0.00016582,2]
[401184641,1768027843391,-178.71892515,0.00016582,2]
[401184643,1768027843404,-150.0,0.00016584,2]
[401184645,1768027843418,-263.75602621,0.000166,2]
[401184647,1768027843427,-255.68743637,0.000166,2]
[401184649,1768027843437,-189.54348929,0.000166,2]
[401184651,1768027843446,-229.31905987,0.000166,2]
[401184653,1768027843458,-216.87423394,0.000166,2]
[401184655,1768027843467,-150.0,0.000166,2]
[401184657,1768027843476,-150.0,0.000166,2]
[401184659,1768027843487,-150.0,0.000166,2]
[401184661,1768027843496,-178.71892515,0.000166,2]
[401184663,1768027843505,-150.0,0.00016609,2]
[401184665,1768027843516,-150.0,0.00016613,2]
[401184667,1768027843526,-150.0,0.00016615,2]
[401184669,1768027843536,-263.75602621,0.00016618,2]
[401184671,1768027843546,-255.68743637,0.00016618,2]
[401184673,1768027843556,-189.54348929,0.00016618,2]
[401184675,1768027843566,-229.31905987,0.00016618,2]
[401184677,1768027843575,-216.87423394,0.00016618,2]
[401184679,1768027843585,-178.71892515,0.00016618,2]
[401184681,1768027843594,-263.75602621,0.00016636,2]
[401184683,1768027843604,-255.68743637,0.00016636,2]
[401184686,1768027843614,-189.54348929,0.00016636,2]
[401184688,1768027843623,-229.31905987,0.00016636,2]
[401184689,1768027843633,-216.87423394,0.00016636,2]
[401184691,1768027843643,-178.71892515,0.00016636,2]
[401184693,1768027843654,-150.0,0.00016643,2]
[401184694,1768027843664,-3805.2217052,0.00016644,2]
[401184696,1768027843674,-2343.32674946,0.00016644,2]
[401184698,1768027843683,-150.0,0.0001665,2]
[401184700,1768027843693,-150.0,0.0001665,2]
[401184702,1768027843702,-150.0,0.0001665,2]
[401184704,1768027843712,-263.75602621,0.00016655,2]
[401184705,1768027843720,-255.68743637,0.00016655,2]
[401184707,1768027843730,-189.54348929,0.00016655,2]
[401184709,1768027843740,-229.31905987,0.00016655,2]
[401184711,1768027843750,-216.87423394,0.00016655,2]
[401184713,1768027843759,-178.71892515,0.00016655,2]
[401184715,1768027843769,-150.0,0.00016667,2]
[401184717,1768027843779,-150.0,0.00016672,2]
[401184719,1768027843788,-263.75602621,0.00016673,2]
[401184721,1768027843798,-255.68743637,0.00016673,2]
[401184723,1768027843807,-189.54348929,0.00016673,2]
[401184724,1768027843816,-229.31905987,0.00016673,2]
[401184726,1768027843826,-216.87423394,0.00016673,2]
[401184728,1768027843836,-178.71892515,0.00016673,2]
[401184730,1768027843846,-199.76,0.00016679,2]
[401184732,1768027843856,-150.0,0.00016685,2]
[401184734,1768027843867,-263.75602621,0.00016691,2]
[401184736,1768027843876,-255.68743637,0.00016691,2]
[401184738,1768027843885,-189.54348929,0.00016691,2]
[401184740,1768027843895,-150.0,0.00016691,2]
[401184742,1768027843904,-229.31905987,0.00016691,2]
[401184743,1768027843913,-216.87423394,0.00016691,2]
[401184745,1768027843923,-178.71892515,0.00016691,2]
[401184747,1768027843933,-150.0,0.00016702,2]
[401184749,1768027843943,-263.75602621,0.00016709,2]
[401184751,1768027843953,-255.68743637,0.00016709,2]
[401184753,1768027843963,-189.54348929,0.00016709,2]
[401184755,1768027843972,-229.31905987,0.00016709,2]
[401184757,1768027843981,-216.87423394,0.00016709,2]
[401184759,1768027843991,-178.71892515,0.00016709,2]
[401184761,1768027844000,-500.0,0.00016712,2]
[401184763,1768027844009,-150.0,0.00016719,2]
[401184765,1768027844019,-263.75602621,0.00016727,2]
[401184767,1768027844034,-255.68743637,0.00016727,2]
[401184769,1768027844044,-189.54348929,0.00016727,2]
[401184771,1768027844054,-229.31905987,0.00016727,2]
[401184773,1768027844064,-216.87423394,0.00016727,2]
[401184775,1768027844074,-178.71892515,0.00016727,2]
[401184777,1768027844084,-150.0,0.00016731,2]
[401184779,1768027844094,-150.0,0.00016732,2]
[401184781,1768027844104,-150.0,0.00016733,2]
[401184783,1768027844114,-263.75602621,0.00016745,2]
[401184785,1768027844124,-255.68743637,0.00016745,2]
[401184787,1768027844133,-189.54348929,0.00016745,2]
[401184789,1768027844143,-229.31905987,0.00016745,2]
[401184791,1768027844153,-216.87423394,0.00016745,2]
[401184793,1768027844163,-178.71892515,0.00016745,2]
[401184795,1768027844176,-150.0,0.00016754,2]
[401184797,1768027844186,-150.0,0.00016761,2]